bitfinex/quotes_SOLUSD_20240809
["timestamp","ask_amount","ask_price","bid_price","bid_amount"]
[1723235499615,20.12549,153.75,153.71,6.5056]
[1723235499915,45.25098,153.74,153.71,6.5056]
[1723235500094,45.25098,153.74,153.66,28.51]
[1723235500095,45.0,153.74,153.66,28.51]
[1723235500414,28.63549,153.76,153.73,6.5045]
[1723235500708,45.0,153.75,153.74,6.5044]
[1723235501310,45.0,153.75,153.72,6.5049]
[1723235501706,45.12549,153.76,153.72,6.5049]
[1723235501908,80.13919,153.76,153.72,6.5049]
[1723235502121,35.0145,153.74,153.69,6.5062]
[1723235502294,35.0145,153.74,153.64,34.5782]
[1723235502695,45.25098,153.73,153.64,34.5782]
[1723235502897,45.25098,153.73,153.7,6.5059]
[1723235503607,45.25098,153.73,153.66,28.51]
[1723235503608,45.0,153.73,153.66,28.51]
[1723235503815,28.63549,153.76,153.72,6.5049]
[1723235504008,65.25098,153.75,153.72,6.32180192]
[1723235504208,0.12549,153.74,153.66,28.51]
[1723235504506,0.25098,153.74,153.66,28.51]
[1723235505215,0.12549,153.73,153.7,6.506]
[1723235505408,0.25098,153.73,153.7,6.506]
[1723235505610,0.25098,153.73,153.71,6.5056]
[1723235505814,0.25098,153.74,153.66,28.51]
[1723235506415,45.37647,153.75,153.66,28.51]
[1723235506624,0.25098,153.74,153.66,28.51]
[1723235506915,20.0,153.75,153.73,6.5045]
[1723235507326,20.0,153.77,153.73,6.5045]
[1723235507517,0.25098,153.76,153.73,6.5045]
[1723235507699,0.25098,153.76,153.71,6.5053]
[1723235507892,28.76098,153.76,153.71,6.5053]
[1723235508094,20.0,153.75,153.71,6.5053]
[1723235509312,20.0,153.75,153.64,7.36933822]
[1723235509615,35.39097,153.74,153.64,6.0682]
[1723235510316,28.88647,153.74,153.7,6.506]
[1723235510523,28.88647,153.74,153.71,6.5057]
[1723235512115,20.0,153.75,153.73,6.5049]
[1723235512424,20.12549,153.76,153.73,6.5049]
[1723235512926,28.63549,153.75,153.64,34.5782]
[1723235513124,0.25098,153.74,153.64,34.5782]
[1723235513494,0.25098,153.74,153.7,6.506]
[1723235513699,0.25098,153.74,153.71,6.5056]
[1723235514536,0.25098,153.74,153.64,34.5782]
[1723235514701,20.0,153.76,153.73,6.5047]
[1723235515026,20.0,153.76,153.74,6.5044]
[1723235515211,20.0,153.76,153.73,6.5048]
[1723235516525,20.0,153.76,153.68,1.30113517]
[1723235516704,28.51,153.75,153.66,28.51]
[1723235517117,28.51,153.75,153.65,45.0]
[1723235517304,0.25098,153.74,153.64,34.5782]
[1723235517637,28.63549,153.73,153.64,6.0682]
[1723235517800,28.63549,153.73,153.69,6.5065]
[1723235518124,28.63549,153.73,153.7,6.506]
[1723235523207,0.25098,153.72,153.7,6.506]
[1723235524422,0.25098,153.72,153.69,6.5065]
[1723235524820,0.25098,153.72,153.7,6.5059]
[1723235525441,28.63549,153.73,153.72,6.5053]
[1723235525606,48.88647,153.73,153.65,1.30131925]
[1723235525811,28.88647,153.73,153.7,6.5058]
[1723235526433,0.25098,153.72,153.7,6.5058]
[1723235526840,0.25098,153.72,153.71,6.5057]
[1723235527436,0.25098,153.72,153.64,6.0682]
[1723235530643,0.25098,153.72,153.69,6.5063]
[1723235531624,0.25098,153.72,153.7,6.506]
[1723235532021,0.25098,153.72,153.64,6.0682]
[1723235532022,0.25098,153.72,153.69,6.5064]
[1723235533719,0.25098,153.72,153.7,6.5058]
[1723235534038,15.3189,153.75,153.66,28.51]
[1723235534246,28.51,153.77,153.67,1.30115944]
[1723235534863,28.51,153.77,153.73,6.5047]
[1723235535239,20.0,153.76,153.73,6.5047]
[1723235536238,0.12549,153.75,153.73,6.5047]
[1723235536447,0.25098,153.75,153.73,6.5047]
[1723235536750,0.25098,153.75,153.72,6.5052]
[1723235538445,20.0,153.76,153.73,6.5048]
[1723235538645,28.63549,153.77,153.66,28.51]
[1723235538859,28.51,153.75,153.69,6.5062]
[1723235539143,6.5055,153.72,153.68,6.5069]
[1723235539724,28.51,153.73,153.64,6.0682]
[1723235539725,35.0159,153.71,153.67,6.5073]
[1723235540027,0.12549,153.7,153.67,6.5073]
[1723235541954,0.12549,153.7,153.68,6.5069]
[1723235542158,0.12549,153.7,153.69,6.5066]
[1723235542364,28.76098,153.73,153.69,6.5066]
[1723235542555,0.37647,153.72,153.7,6.506]
[1723235542763,28.51,153.77,153.68,28.51]
[1723235543048,44.0812,153.79,153.75,6.5039]
[1723235543237,50.5836,153.79,153.75,6.5039]
[1723235543437,50.5836,153.79,153.74,6.5044]
[1723235543826,50.5836,153.79,153.75,6.504]
[1723235544252,20.0,153.78,153.75,6.504]
[1723235544886,20.0,153.78,153.74,6.5044]
[1723235546941,28.63549,153.77,153.72,6.505]
[1723235547239,6.75468,153.76,153.71,6.5056]
[1723235548138,28.63549,153.77,153.73,6.5045]
[1723235548466,28.51,153.77,153.74,6.5043]
[1723235553977,20.0,153.78,153.66,45.0961]
[1723235554178,0.37647,153.77,153.68,28.51]
[1723235554468,0.25098,153.77,153.73,6.5044]
[1723235554647,0.25098,153.77,153.66,45.0961]
[1723235554648,35.13939,153.76,153.66,45.0961]
[1723235554843,0.25098,153.75,153.66,45.0961]
[1723235555262,0.25098,153.75,153.71,6.5054]
[1723235555563,0.25098,153.75,153.72,6.5053]
[1723235556670,0.25098,153.75,153.66,45.0961]
[1723235556959,28.51,153.74,153.71,6.5057]
[1723235559341,0.12549,153.73,153.7,6.5061]
[1723235559541,0.25098,153.73,153.7,6.5061]
[1723235559758,28.63549,153.72,153.64,6.0682]
[1723235559943,28.51,153.7,153.67,6.5073]
[1723235560144,28.51,153.7,153.63,16.0755]
[1723235560444,0.25098,153.71,153.69,6.5066]
[1723235560764,0.12549,153.71,153.69,6.5066]
[1723235561472,0.12549,153.71,153.68,6.5069]
[1723235564568,0.25098,153.71,153.68,6.5069]
[1723235564947,0.12549,153.71,153.69,6.5064]
[1723235565143,0.12549,153.71,153.61,6.80296283]
[1723235565144,0.12549,153.69,153.61,6.80296283]
[1723235565374,0.25098,153.71,153.69,6.5062]
[1723235565568,0.12549,153.71,153.7,6.5061]
[1723235565867,20.0,153.72,153.7,6.5061]
[1723235566069,20.0,153.72,153.71,6.5057]
[1723235566378,34.8777,153.75,153.71,6.5057]
[1723235566665,41.3818,153.75,153.71,6.5057]
[1723235566865,6.3677,153.75,153.72,6.5052]
[1723235567076,43.7662,153.76,153.67,1.30123094]
[1723235567265,43.7662,153.76,153.73,6.5048]
[1723235567451,0.12549,153.75,153.73,6.5048]
[1723235567859,0.12549,153.75,153.72,6.5052]
[1723235568060,43.7662,153.76,153.7,6.5058]
[1723235568471,6.5041,153.75,153.71,6.5056]
[1723235568661,50.2699,153.76,153.71,6.5056]
[1723235568858,20.0,153.75,153.72,6.5052]
[1723235569371,12.8701,153.79,153.75,6.504]
[1723235569556,6.5024,153.79,153.75,6.504]
[1723235570777,20.0,153.78,153.75,6.504]
[1723235571689,20.0,153.78,153.74,6.5044]
[1723235574371,0.12549,153.77,153.73,6.5048]
[1723235574564,0.25098,153.77,153.68,28.51]
[1723235574767,6.75418,153.77,153.68,28.51]
[1723235574978,48.51,153.78,153.69,16.1071]
[1723235574979,20.0,153.78,153.69,16.1071]
[1723235575168,6.502,153.8,153.75,6.5039]
[1723235575354,20.0,153.79,153.75,6.5039]
[1723235577395,26.5023,153.79,153.75,6.5039]
[1723235577556,55.0123,153.79,153.75,6.5039]
[1723235577981,48.51,153.79,153.75,6.5039]
[1723235580154,48.51,153.79,153.76,6.5036]
[1723235580357,20.0,153.79,153.71,1.3007831]
[1723235580554,14.89807999,153.83,153.71,1.3007831]
[1723235580555,40.8777,153.83,153.79,6.5023]
[1723235580755,0.25098,153.82,153.79,6.5023]
[1723235581286,34.51,153.83,153.8,6.5017]
[1723235581477,41.0106,153.83,153.79,6.5022]
[1723235582161,20.0,153.82,153.72,34.8268]
[1723235582363,6.5018,153.81,153.72,34.8268]
[1723235583667,26.62669,153.82,153.72,34.8268]
[1723235583872,0.12549,153.81,153.72,34.8268]
[1723235585782,6.62699,153.81,153.72,34.8268]
[1723235585983,6.5019,153.8,153.72,6.3168]
[1723235586668,35.13699,153.81,153.77,6.503]
[1723235586872,20.12549,153.8,153.77,6.503]
[1723235587405,20.12549,153.8,153.76,6.5035]
[1723235588296,20.0,153.8,153.73,1.30074927]
[1723235588595,0.12549,153.81,153.74,1.30062248]
[1723235588975,0.12549,153.81,153.72,34.8268]
[1723235590668,0.12549,153.81,153.73,1.30062362]
[1723235591692,0.12549,153.81,153.74,19.51]
[1723235591898,0.12549,153.81,153.75,1.30062238]
[1723235592973,39.51,153.82,153.75,1.30062238]
[1723235593177,6.0,153.83,153.77,19.51]
[1723235593391,6.0,153.83,153.79,19.51]
[1723235593697,6.0,153.83,153.82,19.51]
[1723235594073,6.0,153.83,153.82,20.80994712]
[1723235594268,6.0,153.83,153.82,19.51]
[1723235595695,6.0,153.83,153.81,44.6141]
[1723235596597,6.4977,153.9,153.81,44.6141]
[1723235596796,6.4977,153.9,153.82,1.29986182]
[1723235596998,6.4977,153.9,153.83,1.29986182]
[1723235597294,20.0,153.89,153.83,1.29986182]
[1723235597591,20.0,153.89,153.81,44.6141]
[1723235597791,20.0,153.89,153.81,16.1941]
[1723235597974,20.0,153.9,153.81,16.1941]
[1723235598177,6.4982,153.89,153.81,16.1941]
[1723235598679,20.0,153.9,153.81,16.1941]
[1723235598880,0.12549,153.89,153.81,16.1941]
[1723235599077,20.0,153.9,153.82,1.29994192]
[1723235599284,20.0,153.9,153.83,1.29977249]
[1723235599796,20.0,153.9,153.84,1.29985037]
[1723235600111,20.0,153.9,153.81,44.6141]
[1723235600291,6.4985,153.88,153.81,16.1941]
[1723235602088,34.9182,153.89,153.82,1.29994802]
[1723235602287,34.9182,153.89,153.81,16.1941]
[1723235602804,28.42,153.89,153.82,1.29992932]
[1723235603196,28.42,153.89,153.81,16.1941]
[1723235603401,34.9182,153.89,153.81,16.1941]
[1723235603793,6.4985,153.88,153.81,16.1941]
[1723235603997,28.42,153.89,153.81,16.1941]
[1723235604309,26.4981,153.9,153.81,16.1941]
[1723235604600,26.4981,153.9,153.82,1.29986249]
[1723235605113,26.4981,153.9,153.81,16.1941]
[1723235605406,20.0,153.9,153.81,44.6141]
[1723235605604,0.8419388,153.91,153.83,28.42]
[1723235605804,0.8419388,153.91,153.84,46.29961403]
[1723235606302,0.8419388,153.91,153.85,28.42]
[1723235606509,0.8419388,153.91,153.86,1.2995451]
[1723235607295,0.8419388,153.91,153.89,28.42]
[1723235607494,0.8419388,153.91,153.9,1.42464568]
[1723235607692,0.8419388,153.91,153.9,21.55013568]
[1723235607900,0.8419388,153.91,153.9,66.80111568]
[1723235608215,6.4927,154.02,153.9,66.80111568]
[1723235608517,6.3791,154.04,153.95,28.42]
[1723235608710,12.8709,154.04,153.96,1.29873512]
[1723235610501,51.0323,154.05,153.96,1.29873512]
[1723235610721,28.42,154.05,153.97,0.12549]
[1723235610899,28.42,154.05,153.97,0.25098]
[1723235611494,34.9114,154.05,153.97,0.25098]
[1723235611711,0.8419388,154.06,153.97,28.67098]
[1723235612017,0.8419388,154.06,153.98,46.2984495]
[1723235612196,0.8419388,154.06,153.99,28.42]
[1723235612394,0.8419388,154.06,154.01,28.54549]
[1723235612615,0.8419388,154.06,154.02,46.29807178]
[1723235612804,0.8419388,154.06,154.01,28.42]
[1723235614612,0.8419388,154.06,153.99,28.54549]
[1723235614801,0.8419388,154.06,154.0,45.0]
[1723235615398,0.8419388,154.06,153.99,45.0]
[1723235615618,0.8419388,154.06,153.98,28.42]
[1723235615913,0.8419388,154.06,153.99,45.0]
[1723235616519,0.8419388,154.06,153.98,28.42]
[1723235619505,0.8419388,154.06,153.99,45.0]
[1723235619927,0.8419388,154.06,154.0,28.42]
[1723235621525,0.8419388,154.06,154.01,0.12549]
[1723235621718,0.8419388,154.06,154.02,28.42]
[1723235622027,0.8419388,154.06,154.04,22.36019]
[1723235622340,0.8419388,154.06,154.05,45.12549]
[1723235622503,0.8419388,154.06,154.05,45.25098]
[1723235622904,0.8419388,154.06,154.05,45.0]
[1723235623322,0.8419388,154.06,154.05,45.25098]
[1723235623626,0.8419388,154.06,154.05,45.12549]
[1723235623833,0.8419388,154.06,154.05,45.25098]
[1723235624743,0.8419388,154.06,154.05,45.0]
[1723235625038,0.8419388,154.06,154.05,46.54880329]
[1723235625242,0.8419388,154.06,154.05,66.79978329]
[1723235625921,22.3772,154.18,154.06,0.12549]
[1723235626130,15.9645,154.18,154.11,0.12549]
[1723235626315,15.9645,154.18,154.11,45.0]
[1723235626520,28.42,154.2,154.11,45.0]
[1723235626724,6.4127,154.21,154.11,45.0]
[1723235627035,12.8974,154.21,154.11,45.0]
[1723235627232,12.8974,154.21,154.12,1.29726625]
[1723235627431,6.4127,154.21,154.12,29.71726625]
[1723235627926,20.0,154.2,154.13,45.0]
[1723235628108,48.42,154.2,154.13,45.0]
[1723235628308,6.4859,154.18,154.1,0.25098]
[1723235628643,6.4859,154.18,154.06,20.25098]
[1723235628644,34.9059,154.18,154.09,0.12549]
[1723235628826,34.9059,154.18,154.09,45.25098]
[1723235629132,6.4864,154.17,154.09,45.25098]
[1723235629337,28.42,154.16,154.06,28.42]
[1723235629515,29.49824562,154.16,154.06,28.42]
[1723235630037,28.42,154.16,154.06,28.42]
[1723235630212,28.42,154.18,154.06,28.42]
[1723235630412,20.0,154.17,154.06,28.42]
[1723235630708,28.42,154.16,154.07,0.25098]
[1723235630908,28.42,154.16,154.07,45.25098]
[1723235631328,28.42,154.16,154.07,45.0]
[1723235631543,6.0,154.11,154.07,45.0]
[1723235633922,6.0,154.11,154.04,50.6547]
[1723235634116,6.0,154.11,154.04,22.2347]
[1723235634334,6.0,154.11,154.06,28.42]
[1723235634520,6.0,154.11,154.08,28.42]
[1723235634713,6.0,154.11,154.09,1.29763542]
[1723235635641,6.0,154.11,154.08,28.42]
[1723235636835,6.0,154.11,154.09,1.29770258]
[1723235637019,6.0,154.11,154.08,28.42]
[1723235637434,6.0,154.11,154.06,28.42]
[1723235637622,6.0,154.11,154.07,45.0]
[1723235639516,6.0,154.11,154.04,22.2347]
[1723235639928,6.0,154.11,154.04,50.6547]
[1723235640135,6.0,154.11,154.05,1.29779782]
[1723235640340,6.0,154.11,154.06,28.42]
[1723235640542,6.0,154.11,154.07,1.29772811]
[1723235640847,6.0,154.11,154.08,1.29772751]
[1723235641336,6.0,154.11,154.08,0.12549]
[1723235641535,6.0,154.11,154.08,0.25098]
[1723235641721,6.0,154.11,154.08,1.54857285]
[1723235642036,6.0,154.11,154.06,28.42]
[1723235642339,6.0,154.11,154.04,50.6547]
[1723235642533,6.0,154.11,154.05,46.29779465]
[1723235642841,6.0,154.11,154.06,28.42]
[1723235643537,6.0,154.11,154.08,28.42]
[1723235643744,6.0,154.11,154.1,28.42]
[1723235644037,6.0,154.11,154.1,28.54549]
[1723235644220,6.0,154.11,154.1,109.95656]
[1723235644423,0.8419388,154.22,154.11,0.12549]
[1723235644621,0.8419388,154.22,154.16,28.42]
[1723235645239,0.8419388,154.22,154.2,28.42]
[1723235645443,0.8419388,154.22,154.21,0.12549]
[1723235645747,0.8419388,154.22,154.21,45.12549]
[1723235646046,0.8419388,154.22,154.21,65.25098]
[1723235646253,0.8419388,154.22,154.21,65.50196]
[1723235646619,0.8419388,154.22,154.21,65.25098]
[1723235646819,0.8419388,154.22,154.19,16.0346]
[1723235647633,0.8419388,154.22,154.18,34.6087]
[1723235647833,0.8419388,154.22,154.19,45.0]
[1723235648234,0.8419388,154.22,154.18,6.1887]
[1723235648431,0.8419388,154.22,154.16,28.42]
[1723235648638,0.8419388,154.22,154.17,45.0]
[1723235648837,0.8419388,154.22,154.16,45.0]
[1723235649164,0.8419388,154.22,154.16,74.71684936]
[1723235649723,0.8419388,154.22,154.16,82.66684936]
[1723235650120,0.8419388,154.22,154.15,16.2779]
[1723235650526,0.8419388,154.22,154.14,36.37]
[1723235650727,0.8419388,154.22,154.12,36.37]
[1723235650946,1.92018442,154.22,154.12,36.37]
[1723235651126,0.8419388,154.22,154.12,37.66704314]
[1723235651326,0.8419388,154.22,154.14,36.37]
[1723235651642,1.92018442,154.22,154.12,36.37]
[1723235652024,1.92018442,154.22,154.13,20.0]
[1723235652226,1.92018442,154.22,154.14,45.0]
[1723235653448,0.8419388,154.22,154.14,45.0]
[1723235654024,0.8419388,154.22,154.15,1.42252166]
[1723235655122,0.8419388,154.22,154.13,20.0]
[1723235656643,0.8419388,154.22,154.14,45.0]
[1723235657546,0.8419388,154.22,154.15,1.42254164]
[1723235657945,0.8419388,154.22,154.16,36.37]
[1723235658142,0.8419388,154.22,154.17,1.2968158]
[1723235658450,0.8419388,154.22,154.17,65.0]
[1723235658641,0.8419388,154.22,154.17,20.0]
[1723235658841,0.8419388,154.22,154.17,56.37]
[1723235659051,0.8419388,154.22,154.18,1.29674519]
[1723235659854,0.8419388,154.22,154.18,45.0]
[1723235660231,0.8419388,154.22,154.16,0.25098]
[1723235660553,0.8419388,154.22,154.13,36.37]
[1723235661054,36.37,154.21,154.11,52.6479]
[1723235661249,1.92018442,154.22,154.11,52.6479]
[1723235662645,1.92018442,154.22,154.12,20.0]
[1723235662851,36.37,154.19,154.06,21.4886]
[1723235663051,22.3841,154.21,154.11,36.37]
[1723235663352,22.3841,154.21,154.12,1.2971383]
[1723235663849,22.3841,154.21,154.13,36.37]
[1723235664028,15.9247,154.21,154.15,36.37]
[1723235664461,15.9247,154.21,154.09,1.29692426]
[1723235664462,15.9247,154.21,154.12,0.12549]
[1723235664632,15.9247,154.21,154.13,36.37]
[1723235664835,15.9247,154.21,154.14,46.29699649]
[1723235665037,15.9247,154.21,154.15,1.29704452]
[1723235665532,6.0786388,154.26,154.14,46.42253319]
[1723235665730,26.483,154.25,154.14,45.0]
[1723235665939,42.8534,154.24,154.14,45.0]
[1723235667457,6.61009,154.21,154.09,36.37]
[1723235667657,37.44824562,154.2,154.1,0.12549]
[1723235668255,0.12549,154.23,154.13,36.37]
[1723235668442,20.0,154.22,154.14,1.29708233]
[1723235668637,36.1921,154.22,154.14,1.29708233]
[1723235668953,36.1921,154.22,154.12,0.25098]
[1723235669159,36.1921,154.22,154.11,36.49549]
[1723235669354,0.25098,154.21,154.09,36.37]
[1723235669560,0.25098,154.21,154.1,20.12549]
[1723235669766,28.56098,154.21,154.1,48.43549]
[1723235670442,28.31,154.21,154.11,1.29730851]
[1723235670646,36.1921,154.22,154.13,0.12549]
[1723235670848,36.1921,154.22,154.13,1.42256436]
[1723235671155,36.1921,154.22,154.13,45.12549]
[1723235671354,16.1921,154.22,154.14,28.31]
[1723235671571,16.1921,154.22,154.16,28.31]
[1723235671744,15.0425,154.26,154.17,1.29688769]
[1723235672137,15.0425,154.26,154.18,28.31]
[1723235672338,15.0425,154.26,154.19,1.2967686]
[1723235672746,28.31,154.25,154.16,28.31]
[1723235673152,1.07824562,154.24,154.15,0.12549]
[1723235673345,1.07824562,154.24,154.15,65.25098]
[1723235673756,1.07824562,154.24,154.15,20.0]
[1723235674663,28.31,154.17,154.1,6.4237]
[1723235674872,28.31,154.17,154.08,15.6808]
[1723235675256,0.12549,154.18,154.08,15.6808]
[1723235675456,0.12549,154.18,154.08,16.97829339]
[1723235676251,28.31,154.15,154.06,6.4237]
[1723235676456,28.31,154.17,154.07,29.60767069]
[1723235677144,28.31,154.17,154.07,28.31]
[1723235677370,28.31,154.17,154.08,1.29760667]
[1723235677874,36.66098,154.18,154.08,1.29760667]
[1723235678065,0.37647,154.17,154.08,1.29760667]
[1723235678760,0.37647,154.17,154.06,6.4237]
[1723235678961,0.37647,154.17,154.07,65.0]
[1723235679279,0.37647,154.17,154.07,66.29763077]
[1723235679643,6.86297,154.17,154.07,21.29763077]
[1723235679958,0.12549,154.16,154.07,21.29763077]
[1723235680276,36.41,154.14,154.04,22.46297141]
[1723235680567,1.07824562,154.13,154.04,15.6808]
[1723235680948,36.41,154.14,154.04,15.6808]
[1723235681466,37.48824562,154.14,154.04,15.6808]
[1723235681662,36.41,154.14,154.05,20.0]
[1723235682165,36.41,154.18,154.07,36.41]
[1723235682366,56.41,154.18,154.07,36.41]
[1723235682563,62.896,154.18,154.07,36.41]
[1723235682954,36.41,154.16,154.06,0.12549]
[1723235683268,36.41,154.16,154.06,45.0]
[1723235683463,36.41,154.16,154.07,20.0]
[1723235683664,1.07824562,154.15,154.06,45.0]
[1723235683875,1.20373562,154.14,154.04,22.46393025]
[1723235684059,1.20373562,154.14,154.06,20.0]
[1723235684257,0.12549,154.14,154.05,20.0]
[1723235684454,56.41,154.18,154.05,57.70781614]
[1723235684666,0.12549,154.17,154.05,57.70781614]
[1723235684868,56.41,154.18,154.05,57.70781614]
[1723235685258,56.41,154.18,154.06,45.25098]
[1723235685456,0.12549,154.16,154.06,45.0]
[1723235685669,0.25098,154.16,154.05,56.41]
[1723235685972,0.12549,154.16,154.06,0.12549]
[1723235686178,36.41,154.18,154.07,36.41]
[1723235686351,15.4728,154.19,154.11,36.41]
[1723235686556,15.4728,154.19,154.12,1.29732095]
[1723235687074,15.4728,154.19,154.09,36.41]
[1723235687272,15.4728,154.19,154.1,20.0]
[1723235687751,15.4728,154.19,154.11,1.2974744]
[1723235688148,15.4728,154.19,154.09,21.29746289]
[1723235688452,0.12549,154.18,154.09,20.0]
[1723235688655,0.25098,154.18,154.09,20.0]
[1723235688853,15.4728,154.19,154.1,1.2975045]
[1723235689280,15.4728,154.19,154.09,57.70736169]
[1723235689649,15.4728,154.19,154.1,45.25098]
[1723235691274,15.4728,154.19,154.11,1.29734464]
[1723235695778,15.4728,154.19,154.1,45.25098]
[1723235696883,15.4728,154.19,154.1,45.0]
[1723235697182,15.4728,154.19,154.09,56.41]
[1723235699885,15.4728,154.19,154.09,48.31]
[1723235700063,1.32922562,154.18,154.09,48.31]
[1723235700257,0.12549,154.18,154.09,48.31]
[1723235700465,15.4728,154.19,154.09,48.31]
[1723235701074,15.4728,154.19,154.1,1.29750113]
[1723235701483,15.4728,154.19,154.11,28.31]
[1723235701984,15.4728,154.19,154.09,48.31]
[1723235702761,1.07824562,154.18,154.09,48.31]
[1723235704086,15.4728,154.19,154.09,48.31]
[1723235704275,15.4728,154.19,154.11,28.31]
[1723235704589,15.4728,154.19,154.12,1.29733813]
[1723235705760,15.4728,154.19,154.11,28.31]
[1723235706085,1.07824562,154.18,154.11,28.31]
[1723235706659,1.07824562,154.18,154.09,48.31]
[1723235707070,15.4728,154.19,154.1,1.2974988]
[1723235707296,15.4728,154.19,154.11,1.2974128]
[1723235707790,15.4728,154.19,154.11,28.31]
[1723235708482,1.07824562,154.18,154.09,48.31]
[1723235709187,1.07824562,154.18,154.09,28.31]
[1723235710887,0.50196,154.17,154.09,28.31]
[1723235711564,7.56524562,154.16,154.07,28.31]
[1723235711885,28.31,154.13,154.02,28.31]
[1723235712097,28.31,154.13,154.04,28.31]
[1723235712276,15.9695,154.14,154.01,6.78413321]
[1723235712588,15.9695,154.14,154.06,28.31]
[1723235713886,17.04774562,154.14,154.06,28.31]
[1723235714065,29.38824562,154.13,154.04,28.31]
[1723235716595,1.07824562,154.13,154.04,28.31]
[1723235716776,16.09499,154.14,154.04,28.31]
[1723235716977,0.12549,154.13,154.04,28.31]
[1723235717501,15.9695,154.14,154.08,28.31]
[1723235717696,15.9695,154.14,154.09,1.29767559]
[1723235717989,16.4169,154.18,154.12,28.31]
[1723235718393,44.7269,154.18,154.08,28.31]
[1723235718572,52.29134562,154.18,154.08,28.31]
[1723235718772,44.7269,154.18,154.08,28.31]
[1723235719174,0.12549,154.17,154.08,28.31]
[1723235719376,0.25098,154.17,154.08,28.31]
[1723235720696,0.12549,154.16,154.08,28.31]
[1723235720897,1.58020562,154.16,154.08,28.31]
[1723235721193,29.89020562,154.16,154.02,15.8156]
[1723235721494,28.31,154.14,154.05,28.31]
[1723235721696,28.68647,154.16,154.06,20.0]
[1723235722578,29.76471562,154.16,154.06,20.0]
[1723235722772,28.68647,154.16,154.06,20.0]
[1723235724580,1.07824562,154.15,154.06,20.0]
[1723235725190,28.68647,154.16,154.06,20.0]
[1723235725495,28.68647,154.16,154.07,28.31]
[1723235726001,28.68647,154.16,154.07,29.60773703]
[1723235728411,28.68647,154.16,154.07,28.31]
[1723235729877,44.7269,154.18,154.08,45.0]
[1723235730081,44.7269,154.18,154.07,28.31]
[1723235730387,21.07824562,154.17,154.07,28.31]
[1723235731988,20.0,154.17,154.09,28.31]
[1723235736106,26.4863,154.17,154.07,28.31]
[1723235736807,26.4863,154.17,154.06,20.37647]
[1723235737018,26.4863,154.17,154.07,73.31]
[1723235738214,0.12549,154.15,154.05,28.31]
[1723235738427,1.07824562,154.14,154.06,20.0]
[1723235738708,0.25098,154.15,154.06,20.0]
[1723235738903,28.56098,154.16,154.07,1.29782149]
[1723235739501,28.56098,154.16,154.06,20.0]
[1723235739702,1.07824562,154.15,154.06,20.0]
[1723235740309,1.07824562,154.14,154.06,20.0]
[1723235740808,28.56098,154.16,154.06,20.0]
[1723235741013,0.12549,154.15,154.06,20.0]
[1723235741193,1.20373562,154.15,154.06,20.0]
[1723235741689,0.12549,154.15,154.06,20.0]
[1723235742415,28.56098,154.16,154.06,20.0]
[1723235742622,1.07824562,154.15,154.06,20.0]
[1723235743810,19.43,154.13,154.06,39.43]
[1723235743986,17.00414562,154.12,154.03,2.50879724]
[1723235744304,19.43,154.1,154.02,19.43]
[1723235744511,20.50824562,154.09,154.02,2.51368417]
[1723235744699,19.43,154.07,154.0,19.43]